bitfinex/quotes_SOLUSD_20240825
["timestamp","ask_amount","ask_price","bid_price","bid_amount"]
[1724593707852,6.3008,158.71,158.65,22.2686]
[1724593710087,1.2577041,158.7,158.65,22.2686]
[1724593710582,7.5590041,158.7,158.65,22.2686]
[1724593710889,46.2577041,158.69,158.65,15.9658]
[1724593711249,45.0,158.69,158.65,15.9658]
[1724593711454,1.2577041,158.68,158.65,15.9658]
[1724593711678,45.0,158.69,158.65,15.9658]
[1724593711980,1.2577041,158.68,158.65,15.9658]
[1724593712274,51.3017,158.69,158.65,15.9658]
[1724593716671,1.2577041,158.68,158.65,15.9658]
[1724593718083,6.3023,158.67,158.65,15.9658]
[1724593718288,23.0289,158.74,158.61,31.962]
[1724593718289,46.2577041,158.66,158.61,31.962]
[1724593719458,6.3032,158.65,158.61,31.962]
[1724593720558,52.5605041,158.66,158.61,31.962]
[1724593720762,6.3023,158.68,158.61,31.962]
[1724593720990,45.0,158.67,158.61,31.962]
[1724593721480,45.0,158.67,158.62,6.3043]
[1724593723089,51.3024,158.67,158.62,6.3043]
[1724593726591,38.778,158.74,158.63,15.7592]
[1724593726906,6.3012,158.7,158.64,6.3032]
[1724593727918,6.3007,158.72,158.63,15.7592]
[1724593728086,6.3007,158.72,158.66,6.3024]
[1724593729337,45.0,158.71,158.66,6.3024]
[1724593729617,6.3007,158.72,158.67,15.2799]
[1724593729809,6.3007,158.72,158.67,21.5822]
[1724593731025,6.3007,158.72,158.67,15.2799]
[1724593731331,46.2577041,158.71,158.65,22.06]
[1724593731628,1.2577041,158.7,158.65,22.06]
[1724593731827,1.2577041,158.7,158.63,15.2799]
[1724593732029,6.302,158.68,158.63,15.2799]
[1724593732201,1.2577041,158.67,158.63,15.2799]
[1724593735037,7.5601041,158.67,158.63,15.2799]
[1724593735206,46.2577041,158.66,158.63,15.2799]
[1724593735621,46.2577041,158.66,158.62,6.3042]
[1724593742016,45.0,158.66,158.62,6.3042]
[1724593746514,6.3024,158.67,158.61,15.761]
[1724593746515,6.3019,158.69,158.63,6.3039]
[1724593746836,45.0,158.68,158.63,6.3039]
[1724593749037,1.2577041,158.67,158.62,6.3042]
[1724593752753,7.5601041,158.67,158.62,6.3042]
[1724593753126,6.3024,158.67,158.62,6.3042]
[1724593753321,51.302,158.68,158.62,6.3042]
[1724593754745,51.302,158.68,158.63,6.3038]
[1724593755241,45.0,158.68,158.63,6.3038]
[1724593756743,45.0,158.68,158.64,6.3035]
[1724593756958,16.1043,158.75,158.65,1.26049422]
[1724593757245,6.3007,158.72,158.67,6.3022]
[1724593758455,6.3,158.73,158.67,6.3022]
[1724593758748,1.2577041,158.75,158.69,6.3014]
[1724593759127,1.2577041,158.78,158.69,6.3014]
[1724593759527,1.2577041,158.78,158.7,6.3011]
[1724593759727,7.5560041,158.78,158.71,6.3004]
[1724593759934,6.2972,158.8,158.74,6.2994]
[1724593760138,11.84489499,158.82,158.75,7.55878416]
[1724593760327,1.2577041,158.84,158.74,15.7489]
[1724593761532,6.2961,158.83,158.77,6.2982]
[1724593763249,6.2956,158.85,158.79,6.2975]
[1724593763451,6.2956,158.85,158.78,17.00441533]
[1724593763629,6.2957,158.84,158.78,23.30231533]
[1724593764130,6.2957,158.84,158.78,22.0429]
[1724593765651,6.2961,158.83,158.78,22.0429]
[1724593765837,51.2961,158.83,158.78,15.745]
[1724593766045,1.2577041,158.82,158.78,15.745]
[1724593766855,7.5542041,158.82,158.78,15.745]
[1724593767067,7.5542041,158.82,158.77,6.2984]
[1724593770055,7.5542041,158.82,158.76,21.5767]
[1724593774464,7.5542041,158.82,158.76,15.2779]
[1724593774465,1.2577041,158.82,158.76,15.2779]
[1724593774766,6.2972,158.8,158.76,15.2779]
[1724593775164,6.2968,158.81,158.76,15.2779]
[1724593775343,6.2968,158.81,158.76,21.5766]
[1724593775544,6.2964,158.82,158.77,6.2983]
[1724593776674,6.2961,158.83,158.77,6.2983]
[1724593780581,6.2965,158.82,158.77,6.2983]
[1724593783457,6.2965,158.82,158.76,37.3228]
[1724593785070,6.2965,158.82,158.77,6.2984]
[1724593786952,6.2968,158.81,158.76,37.3228]
[1724593787266,6.2972,158.8,158.76,31.0241]
[1724593787454,51.2972,158.8,158.76,31.0241]
[1724593788384,45.0,158.8,158.76,31.0241]
[1724593788761,6.2968,158.81,158.76,37.3228]
[1724593794683,6.2977,158.79,158.76,15.2779]
[1724593795188,7.5554041,158.79,158.74,6.2995]
[1724593796199,45.0,158.78,158.74,6.2995]
[1724593796975,51.2981,158.78,158.73,15.7498]
[1724593797177,51.2981,158.78,158.73,22.0497]
[1724593799105,1.2577041,158.77,158.73,22.0497]
[1724593800902,1.2577041,158.77,158.72,15.6464]
[1724593801077,1.2577041,158.76,158.72,15.6464]
[1724593801277,1.2577041,158.76,158.7,6.301]
[1724593801498,6.2989,158.76,158.7,6.301]
[1724593801707,45.0,158.75,158.7,6.301]
[1724593803984,1.2577041,158.74,158.7,6.301]
[1724593804588,7.5573041,158.74,158.69,22.0545]
[1724593805987,45.0,158.75,158.7,6.301]
[1724593806294,51.2992,158.75,158.7,6.301]
[1724593808010,6.2988,158.76,158.71,6.3007]
[1724593810010,1.2577041,158.8,158.72,6.3003]
[1724593810011,6.2984,158.77,158.72,6.3003]
[1724593812294,7.5567041,158.76,158.71,6.3007]
[1724593812504,6.299,158.76,158.71,6.3007]
[1724593813105,46.2577041,158.75,158.71,6.3007]
[1724593813423,46.2577041,158.75,158.68,15.6464]
[1724593813718,46.2577041,158.75,158.68,21.9483]
[1724593813719,1.2577041,158.74,158.68,21.9483]
[1724593814917,6.2996,158.74,158.68,21.9483]
[1724593816016,7.5573041,158.74,158.69,6.3015]
[1724593816215,7.5573041,158.74,158.68,21.9483]
[1724593817597,1.2577041,158.74,158.68,15.6464]
[1724593817802,7.5580041,158.73,158.68,15.6464]
[1724593818003,45.0,158.72,158.68,15.6464]
[1724593818203,1.2577041,158.73,158.68,15.6464]
[1724593819322,1.2577041,158.73,158.66,22.0594]
[1724593819323,6.3004,158.72,158.66,22.0594]
[1724593819521,6.3012,158.7,158.66,15.7568]
[1724593819701,7.5585041,158.71,158.66,15.7568]
[1724593820514,7.5585041,158.71,158.66,22.0593]
[1724593821632,45.0,158.7,158.66,22.0593]
[1724593821818,1.2577041,158.69,158.66,22.0593]
[1724593822018,45.0,158.7,158.66,22.0593]
[1724593823031,1.2577041,158.69,158.66,22.0593]
[1724593824839,45.0,158.7,158.66,22.0593]
[1724593828537,1.2577041,158.69,158.66,22.0593]
[1724593829034,45.0,158.7,158.66,22.0593]
[1724593831037,7.5598041,158.68,158.63,22.0634]
[1724593835753,45.0,158.67,158.63,22.0634]
[1724593835920,1.2577041,158.66,158.63,22.0634]
[1724593837523,45.0,158.67,158.63,22.0634]
[1724593838343,45.0,158.67,158.64,6.3035]
[1724593838542,45.0,158.68,158.64,6.3035]
[1724593838751,46.2577041,158.68,158.64,6.3035]
[1724593838926,1.2577041,158.67,158.64,6.3035]
[1724593841653,45.0,158.68,158.64,6.3035]
[1724593842348,7.5577041,158.73,158.67,6.302]
[1724593843059,7.5583041,158.72,158.67,6.302]
[1724593843930,6.3008,158.71,158.66,22.3573]
[1724593844132,1.2577041,158.7,158.66,22.3573]
[1724593844358,46.2577041,158.7,158.66,22.3573]
[1724593845136,1.2577041,158.69,158.66,22.3573]
[1724593848250,1.2577041,158.69,158.62,31.5206]
[1724593848251,1.2577041,158.68,158.62,31.8155]
[1724593849433,7.5597041,158.68,158.63,6.3039]
[1724593849759,46.2577041,158.67,158.63,6.3039]
[1724593850061,1.2577041,158.66,158.63,6.3039]
[1724593854540,1.2577041,158.66,158.62,31.8155]
[1724593854737,1.2577041,158.66,158.62,15.7609]
[1724593855537,1.2577041,158.66,158.62,22.0652]
[1724593859451,7.5605041,158.66,158.62,15.7609]
[1724593859650,45.0,158.65,158.62,15.7609]
[1724593859867,1.2577041,158.64,158.62,15.7609]
[1724593861563,1.2577041,158.64,158.58,63.3482]
[1724593862077,7.5613041,158.64,158.58,63.3482]
[1724593862262,45.0,158.63,158.58,63.3482]
[1724593863047,45.0,158.63,158.59,6.3052]
[1724593864175,45.0,158.64,158.6,6.3051]
[1724593869473,1.2577041,158.63,158.6,6.3051]
[1724593869682,1.2577041,158.63,158.48,32.3783689]
[1724593869683,1.2577041,158.63,158.55,6.3069]
[1724593869981,1.2577041,158.63,158.54,30.7857]
[1724593869982,6.3045,158.62,158.56,6.3066]
[1724593870154,46.2577041,158.61,158.56,6.3066]
[1724593870490,46.2577041,158.61,158.57,6.3062]
[1724593872267,1.2577041,158.61,158.57,6.3062]
[1724593877094,1.2577041,158.61,158.54,30.7857]
[1724593877275,1.2577041,158.61,158.57,6.3063]
[1724593877474,51.3047,158.62,158.57,6.3063]
[1724593877678,1.2577041,158.61,158.57,6.3063]
[1724593885128,6.3058,158.59,158.54,30.7857]
[1724593885438,1.2577041,158.58,158.54,22.0758]
[1724593885726,46.2577041,158.58,158.51,15.7716]
[1724593886101,6.3063,158.57,158.51,15.7716]
[1724593886303,46.2577041,158.56,158.51,15.7716]
[1724593887406,46.2577041,158.56,158.52,6.308]
[1724593887605,1.2577041,158.56,158.52,6.308]
[1724593888900,45.0,158.57,158.54,6.3075]
[1724593889102,22.5796,158.63,158.57,6.3063]
[1724593889303,6.3049,158.61,158.55,6.3067]
[1724593889611,1.2577041,158.6,158.55,6.3067]
[1724593890236,6.3049,158.61,158.55,6.3067]
[1724593890434,45.0,158.6,158.56,15.7668]
[1724593890963,1.2577041,158.62,158.57,6.3059]
[1724593892145,46.2577041,158.62,158.57,6.3059]
[1724593893569,45.0,158.62,158.57,6.3059]
[1724593893763,1.2577041,158.61,158.57,6.3059]
[1724593894258,1.2577041,158.61,158.58,6.3058]
[1724593895740,45.0,158.62,158.58,6.3058]
[1724593896842,6.3034,158.65,158.59,6.3055]
[1724593897039,46.2577041,158.64,158.59,6.3055]
[1724593897342,1.2577041,158.64,158.59,6.3055]
[1724593898644,46.2577041,158.64,158.59,6.3055]
[1724593899341,52.5613041,158.64,158.59,6.3055]
[1724593899756,46.2577041,158.64,158.59,6.3055]
[1724593902163,52.5612041,158.64,158.59,6.3055]
[1724593904160,46.2577041,158.64,158.6,6.3051]
[1724593904355,6.5929,158.68,158.61,17.02269527]
[1724593904563,6.302,158.68,158.62,6.3043]
[1724593905583,6.3034,158.65,158.57,15.7649]
[1724593905883,6.3024,158.67,158.61,6.3047]
[1724593906172,45.0,158.66,158.61,6.3047]
[1724593906752,46.2577041,158.66,158.61,6.3047]
[1724593908353,46.2577041,158.66,158.62,6.3042]
[1724593917592,52.5605041,158.66,158.59,15.763]
[1724593917757,1.2577041,158.65,158.6,6.3047]
[1724593917953,7.5609041,158.65,158.59,22.0685]
[1724593918259,45.0,158.64,158.59,22.0685]
[1724593918459,1.2577041,158.63,158.59,22.0685]
[1724593920672,1.2577041,158.63,158.56,32.2086]
[1724593921469,6.3045,158.62,158.57,6.3062]
[1724593921670,46.2577041,158.61,158.57,6.3062]
[1724593926467,1.2577041,158.61,158.57,6.3062]
[1724593926667,46.2577041,158.62,158.57,6.3062]
[1724593933706,46.2577041,158.62,158.56,15.7666]
[1724593934008,7.5625041,158.61,158.56,15.7666]
[1724593934307,45.0,158.6,158.56,15.7666]
[1724593934510,1.2577041,158.59,158.56,15.7666]
[1724593935911,7.5632041,158.59,158.53,15.7697]
[1724593936214,51.306,158.58,158.53,15.7697]
[1724593936412,1.2577041,158.57,158.53,15.7697]
[1724593936620,6.3076,158.54,158.48,22.7362689]
[1724593936911,1.2577041,158.53,158.48,16.4264689]
[1724593937128,1.2577041,158.57,158.48,16.4264689]
[1724593937286,6.3067,158.56,158.5,6.3091]
[1724593937487,45.0,158.55,158.5,6.3091]
[1724593937892,46.2577041,158.55,158.5,6.3091]
[1724593939105,1.2577041,158.54,158.5,6.3091]
[1724593940322,7.5654041,158.54,158.48,0.8291689]
[1724593940913,45.0,158.53,158.48,0.8291689]
[1724593941086,1.2577041,158.52,158.48,0.8291689]
[1724593941510,1.2577041,158.52,158.48,7.1389689]
[1724593942222,46.2577041,158.53,158.48,7.1389689]
[1724593943415,45.0,158.53,158.48,7.1389689]
[1724593943587,45.0,158.54,158.49,6.3095]
[1724593944514,46.2577041,158.54,158.49,6.3095]
[1724593944716,45.0,158.53,158.49,6.3095]
[1724593944910,1.2577041,158.54,158.49,6.3095]
[1724593956512,7.5653041,158.54,158.48,7.1390689]
[1724593956708,45.0,158.53,158.48,7.1390689]
[1724593956919,1.2577041,158.52,158.48,7.1390689]
[1724593958499,1.2577041,158.52,158.49,6.3095]
[1724593958700,45.0,158.53,158.49,6.3095]
[1724593958918,45.0,158.54,158.49,6.3095]
[1724593959133,1.2577041,158.53,158.49,6.3095]
[1724593959338,1.2577041,158.53,158.5,6.3089]
[1724593959628,1.2577041,158.59,158.55,6.3071]
[1724593959833,1.2577041,158.59,158.5,15.1032]
[1724593959834,1.2577041,158.59,158.54,6.3074]
[1724593960044,6.3044,158.62,158.55,6.3069]
[1724593960328,6.6334,158.64,158.56,6.3066]
[1724593960329,6.304,158.63,158.56,6.3066]
[1724593960531,6.6334,158.68,158.52,15.1032]
[1724593960736,6.3027,158.66,158.55,31.5355]
[1724593960932,6.6334,158.68,158.6,6.3051]
[1724593961302,1.2577041,158.67,158.61,6.3047]
[1724593962120,1.2577041,158.67,158.63,6.3038]
[1724593962321,1.2577041,158.67,158.62,15.7603]
[1724593962633,1.2577041,158.68,158.62,15.7603]
[1724593962834,1.2577041,158.67,158.63,6.3038]
[1724593963124,1.2577041,158.67,158.62,15.7603]
[1724593964329,1.2577041,158.67,158.62,22.0646]
[1724593966835,46.2577041,158.68,158.62,22.0646]
[1724593967239,1.2577041,158.67,158.62,22.0646]
[1724593977444,1.2577041,158.67,158.6,6.3047]
[1724593977623,6.3028,158.66,158.6,6.3047]
[1724593977823,45.0,158.65,158.6,6.3047]
[1724593978241,45.0,158.66,158.6,6.3047]
[1724593978432,1.2577041,158.65,158.61,6.3046]
[1724593981062,45.0,158.66,158.61,6.3046]
[1724593981422,45.0,158.66,158.62,6.3042]
[1724593981622,45.0,158.67,158.62,6.3042]
[1724593981843,46.2577041,158.67,158.62,6.3042]
[1724593983665,46.2577041,158.67,158.59,30.867]
[1724593983666,52.5602041,158.67,158.59,30.867]
[1724593983848,1.2577041,158.66,158.59,30.867]
[1724593984526,1.2577041,158.66,158.61,6.3047]
[1724593985532,7.5605041,158.66,158.6,6.3051]
[1724593985847,45.0,158.65,158.6,6.3051]
[1724593986039,1.2577041,158.64,158.6,6.3051]
[1724593988029,45.0,158.65,158.6,6.3051]
[1724593988463,1.2577041,158.64,158.6,6.3051]
[1724593991354,45.0,158.65,158.6,6.3051]
[1724593991654,6.3024,158.67,158.59,30.867]
[1724593991855,45.0,158.66,158.59,30.867]
[1724593992233,45.0,158.66,158.62,6.3043]
[1724593992561,45.0,158.67,158.63,6.3039]
[1724593994834,45.0,158.68,158.63,6.3039]
[1724593995041,1.2577041,158.67,158.63,6.3039]
[1724593996470,45.0,158.68,158.63,6.3039]
[1724593997439,1.2577041,158.67,158.63,6.3039]
[1724593999364,45.0,158.68,158.63,6.3039]
[1724593999571,46.2577041,158.68,158.63,6.3039]
[1724594000748,1.2577041,158.67,158.63,6.3039]
[1724594001746,45.0,158.68,158.63,6.3039]
[1724594001945,46.2577041,158.68,158.63,6.3039]
[1724594003554,45.0,158.68,158.63,6.3039]
[1724594004651,1.2577041,158.67,158.63,6.3039]
[1724594004854,1.2577041,158.67,158.62,6.3042]
[1724594007273,7.5602041,158.67,158.61,22.0658]
[1724594007485,45.0,158.66,158.61,22.0658]
[1724594007782,1.2577041,158.65,158.61,22.0658]
[1724594013786,45.0,158.66,158.61,22.0658]
[1724594017080,1.2577041,158.65,158.61,22.0658]
[1724594026905,45.0,158.66,158.61,22.0658]
[1724594027102,45.0,158.66,158.62,6.3042]
[1724594027291,6.3019,158.68,158.62,6.3042]
[1724594027488,1.2577041,158.67,158.62,6.3042]
[1724594028808,46.2577041,158.67,158.62,6.3042]
[1724594031990,19.5620916,158.73,158.64,15.6343]
[1724594031991,3.2089916,158.73,158.64,15.6343]
[1724594032194,15.748,158.75,158.64,15.6343]
[1724594032397,6.3012,158.7,158.64,21.9378]
[1724594033208,45.0,158.69,158.64,21.9378]
[1724594033380,1.2577041,158.68,158.64,21.9378]
[1724594033585,1.2577041,158.68,158.64,15.6343]
[1724594035407,1.2577041,158.67,158.64,15.6343]
[1724594035608,7.5603041,158.67,158.64,15.6343]
[1724594035787,45.0,158.66,158.64,15.6343]
[1724594036106,1.2577041,158.65,158.64,15.6343]
[1724594036506,45.0,158.66,158.64,15.6343]
[1724594037113,1.2577041,158.65,158.61,6.3047]
[1724594039884,45.0,158.66,158.61,6.3047]
[1724594044899,45.0,158.66,158.62,6.3042]
[1724594045091,6.3026,158.67,158.62,6.3042]
[1724594045400,1.2577041,158.66,158.62,6.3042]
[1724594046511,6.3026,158.67,158.62,6.3042]
[1724594047214,6.302,158.68,158.62,6.3042]
[1724594047415,46.2577041,158.67,158.62,6.3042]
[1724594048307,45.0,158.67,158.62,6.3042]
[1724594048510,1.2577041,158.66,158.62,6.3042]
[1724594049719,45.0,158.67,158.62,6.3042]
[1724594051317,1.2577041,158.66,158.62,6.3042]
[1724594052299,51.3025,158.67,158.62,6.3042]
[1724594052500,1.2577041,158.66,158.62,6.3042]
[1724594055624,1.2577041,158.66,158.61,6.3046]
[1724594058808,45.0,158.67,158.62,6.3042]
[1724594059219,6.3023,158.68,158.62,6.3042]
[1724594059726,6.3012,158.7,158.65,6.3031]
[1724594060110,6.3012,158.7,158.64,6.3035]
[1724594061026,45.0,158.69,158.64,6.3035]
[1724594062010,45.0,158.69,158.65,6.303]
[1724594062205,52.5589041,158.7,158.65,6.303]
[1724594066254,52.5589041,158.7,158.64,6.3035]
[1724594070336,45.0,158.7,158.64,15.7582]
[1724594070636,45.0,158.7,158.66,6.3024]
[1724594071138,45.0,158.7,158.65,21.9787]
[1724594071714,1.2577041,158.69,158.65,15.6756]
[1724594072139,7.5593041,158.69,158.64,22.0617]
[1724594072321,45.0,158.68,158.64,22.0617]
[1724594075445,45.0,158.7,158.65,6.3031]
[1724594076225,1.2577041,158.69,158.65,6.3031]
[1724594093154,1.2577041,158.69,158.64,22.0616]
[1724594093339,7.5594041,158.69,158.64,15.7582]
[1724594093661,45.0,158.68,158.64,15.7582]
[1724594093962,1.2577041,158.67,158.64,15.7582]
[1724594094854,45.0,158.68,158.64,15.7582]
[1724594098355,1.2577041,158.67,158.64,15.7582]
[1724594098554,6.3012,158.7,158.64,22.0616]
[1724594098855,46.2577041,158.69,158.64,22.0616]
[1724594101364,52.5593041,158.69,158.64,22.0616]
[1724594101664,7.5597041,158.68,158.61,31.4372]
[1724594101971,46.2577041,158.67,158.61,31.4372]
[1724594102279,45.0,158.67,158.63,6.3039]
[1724594102964,13.79394052,158.66,158.63,6.3039]
[1724594103259,13.79394052,158.65,158.63,6.3039]
[1724594103469,13.79394052,158.64,158.63,6.3039]
[1724594103787,45.0,158.67,158.63,6.3039]
[1724594104138,5.409282,158.64,158.63,6.3039]
[1724594104540,5.40960241,158.64,158.63,6.3039]
[1724594104946,45.0,158.67,158.63,6.3039]
[1724594105458,45.0,158.67,151.02,110.03361322]
[1724594105459,6.3036,158.64,158.58,6.3059]
[1724594105643,1.2577041,158.63,158.59,6.3055]
[1724594105844,46.2577041,158.63,158.59,6.3055]
[1724594106243,1.2577041,158.63,158.59,6.3055]
[1724594106968,6.3028,158.66,158.6,6.3051]
[1724594108860,1.2577041,158.65,158.6,6.3051]
[1724594111057,5.40839109,158.64,158.6,6.3051]
[1724594111291,5.40839109,158.63,158.6,6.3051]
[1724594111600,5.40839109,158.62,158.6,6.3051]
[1724594111879,5.40839109,158.61,158.6,6.3051]
[1724594115087,6.3028,158.66,158.6,6.3051]
[1724594118594,21.9431,158.7,158.59,15.7631]
[1724594118595,52.5609041,158.65,158.59,22.0684]
[1724594120671,52.5609041,158.65,158.6,6.305]
[1724594121670,6.3028,158.66,158.6,6.305]
[1724594126394,6.3024,158.67,158.61,6.3044]
[1724594126591,5.96567306,158.72,158.62,17.38958747]
[1724594126814,6.3004,158.72,158.67,6.3021]
[1724594127099,44.18511706,158.76,158.68,16.1288]
[1724594127270,22.09255853,158.76,158.72,6.3003]
[1724594127672,6.298,158.78,158.72,6.3003]
[1724594127868,6.298,158.78,158.68,16.1288]
[1724594127869,7.5553041,158.79,158.73,6.2999]
[1724594128074,12.87576596,158.82,158.75,16.1288]
[1724594128305,22.09255853,158.83,158.76,6.2988]
[1724594128475,6.2964,158.82,158.75,23.68752956]
[1724594128884,6.2964,158.82,158.75,22.4279]
[1724594129702,28.26105853,158.87,158.76,6.2986]
[1724594129703,6.2961,158.83,158.76,6.2986]
[1724594129882,1.2577041,158.82,158.76,6.2986]
[1724594131485,46.2577041,158.82,158.76,6.2986]
[1724594131697,1.2577041,158.82,158.76,6.2986]
[1724594131903,7.5542041,158.82,158.75,16.1288]
[1724594132813,6.2975,158.8,158.75,16.1288]
[1724594133002,1.2577041,158.79,158.75,16.1288]
[1724594133203,46.2577041,158.79,158.75,16.1288]
[1724594133405,45.0,158.79,158.75,16.1288]
[1724594134912,1.2577041,158.78,158.75,16.1288]
[1724594136214,45.0,158.79,158.75,16.1288]
[1724594146916,15.7376,158.86,158.75,16.1288]
[1724594147113,46.2577041,158.85,158.75,16.1288]
[1724594147725,6.2964,158.82,158.76,6.2988]
[1724594150022,1.2577041,158.81,158.76,6.2988]
[1724594151311,6.2964,158.82,158.76,6.2988]
[1724594152841,6.296,158.83,158.77,6.298]
[1724594153014,51.2964,158.82,158.77,6.298]
[1724594153214,6.2964,158.82,158.77,6.298]
[1724594154240,6.2964,158.82,158.76,6.2987]
[1724594155732,52.5545041,158.81,158.76,6.2987]
[1724594155934,1.2577041,158.8,158.76,6.2987]
[1724594156317,51.2968,158.81,158.76,6.2987]
[1724594156714,1.2577041,158.8,158.76,6.2987]
[1724594157046,1.2577041,158.8,158.75,16.1288]
[1724594157846,1.2577041,158.79,158.75,16.1288]
[1724594158135,1.2577041,158.8,158.75,16.1288]
[1724594158910,6.2976,158.79,158.75,16.1288]
[1724594159248,7.5550041,158.8,158.75,16.1288]
[1724594160819,1.2577041,158.79,158.75,16.1288]
[1724594162839,7.5550041,158.8,158.75,16.1288]
[1724594163238,51.2968,158.81,158.75,22.4278]
[1724594163917,6.2964,158.82,158.77,6.2984]
[1724594164240,6.2961,158.83,158.78,6.298]
[1724594166229,6.2961,158.83,158.77,6.2983]
[1724594167116,6.2956,158.84,158.78,6.2979]
[1724594167532,6.2956,158.84,158.79,1.25932132]
[1724594167735,6.2956,158.84,158.78,6.2979]
[1724594168648,6.2956,158.84,158.79,1.25932125]
[1724594168948,1.2577041,158.89,158.8,16.0679]
[1724594169441,15.7331,158.91,158.81,1.25909108]
[1724594169651,6.2945,158.87,158.81,7.55549108]
[1724594171046,6.2945,158.87,158.82,6.2963]
[1724594171234,6.294,158.88,158.81,1.25909108]
[1724594171437,45.0,158.87,158.82,6.2963]
[1724594171637,51.2944,158.87,158.83,1.25905106]
[1724594173028,51.2944,158.87,158.82,6.2963]
[1724594174161,1.2577041,158.86,158.81,6.2967]
[1724594174322,51.2944,158.87,158.81,6.2967]
[1724594178951,7.5526041,158.86,158.81,6.2967]
[1724594179627,45.0,158.87,158.82,6.2963]
[1724594179628,51.2945,158.87,158.82,6.2963]
[1724594180550,6.2941,158.88,158.82,6.2963]
[1724594182054,6.2941,158.88,158.83,6.2959]
[1724594183442,51.2944,158.87,158.82,6.2963]
[1724594183651,6.2948,158.86,158.81,6.2968]
[1724594184157,6.2944,158.87,158.82,6.2963]
[1724594186463,6.2941,158.88,158.82,6.2963]
[1724594186656,6.2941,158.88,158.83,7.55482334]
[1724594186957,6.2937,158.89,158.83,6.2959]
[1724594188060,7.5517041,158.88,158.83,6.2959]
[1724594188656,7.5517041,158.88,158.82,6.2963]
[1724594189350,6.294,158.88,158.82,6.2963]
[1724594196965,6.2937,158.89,158.84,6.2955]
[1724594200760,7.22337716,158.93,158.85,6.2951]
[1724594200968,45.0,158.92,158.85,22.5101]
[1724594201155,6.2932,158.9,158.85,22.5101]
[1724594202451,5.96567306,158.93,158.86,6.2947]
[1724594202639,6.2926,158.92,158.87,6.2944]
[1724594202842,6.2926,158.92,158.86,6.2947]
[1724594205268,6.2929,158.91,158.86,6.2947]
[1724594205452,1.2577041,158.91,158.85,31.9524]
[1724594205658,6.2934,158.9,158.85,31.9524]
[1724594206861,6.2929,158.91,158.85,38.2474]
[1724594207760,6.2929,158.91,158.86,6.2948]
[1724594210880,6.2925,158.92,158.86,6.2948]
[1724594211759,6.2929,158.91,158.85,38.2476]
[1724594212282,51.2933,158.9,158.85,31.9524]
[1724594212575,6.294,158.88,158.85,16.215]
[1724594212779,6.294,158.88,158.82,22.0368]
[1724594216278,6.2936,158.89,158.83,6.2959]
[1724594218490,6.2936,158.89,158.84,6.2956]
[1724594219687,6.2948,158.87,158.82,15.7408]
[1724594219864,1.2577041,158.92,158.83,6.296]
[1724594220064,6.2937,158.89,158.83,6.296]
[1724594225291,6.2941,158.88,158.83,6.296]
[1724594231800,6.295,158.86,158.81,22.4055]
[1724594233798,1.2577041,158.9,158.81,16.1088]
[1724594233799,6.2953,158.85,158.81,16.1088]
[1724594238507,6.2958,158.84,158.81,16.1088]
[1724594238707,45.0,158.83,158.77,16.0262]
[1724594239003,6.2974,158.8,158.77,16.0262]
[1724594240981,7.5553041,158.79,158.73,22.3261]
[1724594241387,6.2976,158.79,158.73,22.3261]
[1724594241701,6.2972,158.8,158.74,6.2995]
[1724594245202,6.2972,158.8,158.75,6.2991]
[1724594247519,46.2577041,158.83,158.75,15.7479]
[1724594247807,46.2577041,158.83,158.76,6.2987]
[1724594247808,6.2964,158.82,158.76,6.2987]
[1724594247981,25.30886303,158.88,158.78,15.7447]
[1724594248182,6.2957,158.84,158.79,7.55648907]
[1724594248382,6.2952,158.85,158.8,6.2971]